Cogmind - Beta 13 @@@ ROGUE MODE // 2024.04.06 @ 11:34:01 Player: Devilhunter10 Result: Destroyed by P-70 Sage with High-powered Shock Rifle Performance ------------- Evolutions (6) 3000 Regions Visited (11) 2200 Robots Destroyed (69) 345 Value Destroyed (2809) 2809 Prototype IDs (9) 180 Alien Tech Used (0) 0 Bonus (252) 252 TOTAL SCORE: 8786 Bonus ------- High Alert Combat Kills 91 Aligned with FarCom 300 Friendly Fire -139 Cogmind --------- Core Integrity 0/1150 Matter 177/300 Energy 43/100 System Corruption 13% Temperature Cool (0) Movement Flying (105) Ox1 Location -4/Factory Parts ------- > --- POWER (2) -------- (None) > --- PROPULSION (8) --- Improved VTOL Module > --- UTILITY (6) ------ Medium Storage Unit Enhanced Optical Array Improved Target Analyzer > --- WEAPON (3) ------- (None) > --- INVENTORY (10) --- Improved Gyrokinetic Inverter Large Storage Unit High-capacity Matter Pod (200) Experimental Sensor Array Improved Kinecellerator Improved Field Recycling Unit (0) High-powered Shock Rifle Mini Assault Cannon Peak State ------------ > --- POWER ------------ Heavy Deuterium Engine Angular Momentum Engine > --- PROPULSION ------- Advanced Medium Treads Improved Heavy Treads Improved Heavy Treads Improved Heavy Treads VTOL Module > --- UTILITY ---------- Medium Storage Unit Enhanced Optical Array Improved Target Analyzer Improved Target Analyzer Hacking Suite Improved Field Recycling Unit > --- WEAPON ----------- Gauss Rifle Advanced Assault Cannon Mini Assault Cannon > --- INVENTORY -------- Improved VTOL Module Cooled VTOL Module Field Propulsion Drive High-capacity Matter Pod Experimental Sensor Array Improved Kinecellerator Reaction Control System System Restoration Module AWS/Thermal [Rating: 102] Favorites ----------- Power Ion Engine Engine Ion Engine Power Core Light Fission Core Reactor Light Quantum Reactor Propulsion Cesium-ion Thruster Treads Advanced Medium Treads Leg Aluminum Leg Hover Unit Backup Propulsion III Flight Unit Cesium-ion Thruster Utility Medium Storage Unit Device Advanced Weight Redist. System Storage Medium Storage Unit Processor Improved Target Analyzer Hackware Hacking Suite Protection Backup Plating III Weapon Light Cannon Energy Gun AWS/Thermal Ballistic Gun Gauss Rifle Ballistic Cannon Light Cannon Launcher Smartbomb Launcher Special Weapon Remote Datajack Slashing Weapon Makeshift Sword Special Melee Weapon Improved Datajack Build | -11 -10 -10 -10 -9 -8 -7 -6 -6 -6 -5 -4 ------- Run | Yrd Mat Min Exi Min Mat Fac Fac Low Low Fac Fac Slots Evolved 12 | . . . . . 4 2 2 . . 2 2 Power 1 | . . . . . . . 1 . . . . Propulsion 6 | . . . . . 2 1 1 . . 1 1 Utility 4 | . . . . . 2 . . . . 1 1 Weapon 1 | . . . . . . 1 . . . . . Parts Attached 150 | 6 7 . 1 4 10 34 7 4 . 19 58 Power 29 | 1 . . . . 1 3 6 . . 10 8 Engine 19 | 1 . . . . . 3 4 . . 6 5 Core 8 | . . . . . 1 . 2 . . 4 1 Reactor 2 | . . . . . . . . . . . 2 Propulsion 40 | 2 1 . . . 1 8 1 . . 5 22 Treads 5 | . . . . . . . . . . . 5 Leg 7 | 2 1 . . . 1 . . . . . 3 Wheel . | . . . . . . . . . . . . Hover 6 | . . . . . . . . . . . 6 Flight 22 | . . . . . . 8 1 . . 5 8 Utility 45 | 1 4 . . . 3 13 . 3 . 2 19 Device 31 | . 1 . . . 2 9 . 3 . . 16 Storage 5 | 1 2 . . . . 2 . . . . . Processor 6 | . 1 . . . 1 1 . . . 1 2 Hackware 2 | . . . . . . 1 . . . 1 . Protection 1 | . . . . . . . . . . . 1 Artifact . | . . . . . . . . . . . . Weapon 36 | 2 2 . 1 4 5 10 . 1 . 2 9 Energy Gun 6 | . . . 1 . 2 1 . . . . 2 Energy Cannon . | . . . . . . . . . . . . Ballistic Gun 6 | 2 . . . . . 2 . . . . 2 Ballistic Cannon 14 | . 2 . . 3 1 4 . . . 1 3 Launcher 1 | . . . . . . . . . . . 1 Special Weapon 1 | . . . . . . 1 . . . . . Impact Weapon . | . . . . . . . . . . . . Slashing Weapon 7 | . . . . 1 2 2 . 1 . . 1 Piercing Weapon . | . . . . . . . . . . . . Special Melee Weapon 1 | . . . . . . . . . . 1 . Unidentified Prototypes 9 | . . . 1 . 2 5 . . . . 1 Parts Lost 47 | . . . . . 6 1 . 1 . 7 32 Power 8 | . . . . . 1 . . . . 1 6 Propulsion 23 | . . . . . 2 1 . 1 . 4 15 Utility 10 | . . . . . 2 . . . . 1 7 Weapon 6 | . . . . . 1 . . . . 1 4 Highest Loss Streak 6 | . . . . . 3 1 . 1 . 4 6 To Critical Strikes 1 | . . . . . . . . . . . 1 Average Slot Usage (%) 81 | . 96 100 90 100 52 93 91 90 86 79 64 Engine 7 | . 14 14 14 14 7 4 4 . . 4 4 Core 2 | . . . . . . 2 7 13 13 5 1 Treads 1 | . . . . . . . . . . . 5 Leg 9 | . 28 28 28 28 9 . . . . . 1 Hover 2 | . . . . . . . . . . . 8 Flight 12 | . . . . . . 34 40 37 33 29 2 Device 4 | . 7 . . . 3 10 6 6 6 5 3 Storage 8 | . 14 14 14 14 9 7 6 6 6 5 5 Processor 10 | . 3 14 14 14 5 10 6 6 6 7 14 Hackware 1 | . . . . . . . 6 6 6 8 1 Energy Gun 2 | . . . 9 . 1 . 6 6 6 5 1 Ballistic Gun 3 | . 19 . . . . 10 . . . . . Ballistic Cannon 7 | . 8 28 9 17 9 2 6 3 . . 5 Slashing Weapon 2 | . . . . 10 6 4 . 2 6 . . Naked Turns . | . . . . . . . . . . . . Heaviest Build 60 | 12 21 16 18 18 18 43 39 36 34 36 60 Greatest Support 255 | 20 20 20 20 20 20 34 39 39 34 44 255 Greatest Overweight (x) 11 | . 1 . . . 4 1 . . . 1 11 Average Overweight (x) . | . . . . . . . . . . . . Largest Inventory Capacity 10 | 8 10 8 8 8 8 10 10 10 10 10 10 Average Capacity 9 | 6 8 8 8 8 8 9 10 10 10 10 10 Most Carried 10 | 5 6 6 8 8 8 10 10 10 10 10 10 Average Carried 8 | 2 2 6 6 7 6 9 9 10 10 9 9 Final Capacity 10 | 8 8 8 8 8 8 10 10 10 10 10 10 Final Carried 10 | 1 6 6 7 8 7 10 10 10 10 10 8 Class Distribution -------------------- 43% | Mutant 24% | Sprinter 13% | Gunner 7% | Hacker-Sprinter 6% | Scavenger-Gunner 4% | Skirmisher Dominant Class ---------------- Mutant | -10/Materials Mutant | -10/Mines Mutant | -10/Exiles Mutant | -9/Mines Mutant | -8/Materials Sprinter | -7/Factory Sprinter | -6/Factory Sprinter | -6/Lower Caves Sprinter | -6/Lower Caves Hacker-Sprinter | -5/Factory Gunner | -4/Factory Resources | -11 -10 -10 -10 -9 -8 -7 -6 -6 -6 -5 -4 ----------- Run | Yrd Mat Min Exi Min Mat Fac Fac Low Low Fac Fac Matter Collected 2163 | 250 145 75 60 44 88 481 . 101 . 172 747 Remotely . | . . . . . . . . . . . . Salvage Created 2439 | . 187 26 . 62 242 421 . . . 385 1116 Parts 120 | . 12 4 . 10 10 16 . . . 15 53 Haulers Intercepted . | . . . . . . . . . . . . Recyclers Shooed 3 | . . 1 . . . . . . . 1 1 Parts Field Recycled 31 | . . . . . . 3 . . . . 28 Retrieved Matter 362 | . . . . . . 15 . . . . 347 Parts Self-Destructed . | . . . . . . . . . . . . Prevented . | . . . . . . . . . . . . Kills | -11 -10 -10 -10 -9 -8 -7 -6 -6 -6 -5 -4 ------- Run | Yrd Mat Min Exi Min Mat Fac Fac Low Low Fac Fac Combat Hostiles Destroyed 62 | . 8 3 . 3 5 7 . . . 9 27 Melee 7 | . . . . 3 2 1 . . . . 1 Guns 30 | . 5 . . . 3 6 . . . 9 7 Cannons 11 | . 3 3 . . . . . . . . 5 AOE 13 | . . . . . . . . . . . 13 Classes Destroyed 13 | . 4 . . 1 1 2 . . . . 5 Worker 1 | . . . . . . . . . . . 1 Builder 2 | . . . . . . 1 . . . . 1 Tunneler 1 | . . . . 1 . . . . . . . Recycler 1 | . . . . . . . . . . . 1 Mechanic 1 | . 1 . . . . . . . . . . Operator 1 | . 1 . . . . . . . . . . Drone 1 | . . . . . . . . . . . 1 Swarmer 26 | . 6 3 . 3 . . . . . 4 10 Grunt 19 | . 2 . . . 3 4 . . . 4 6 Duelist 1 | . . . . . . . . . . . 1 Sentry 3 | . . . . . 2 1 . . . . . Hunter 4 | . . . . . . . . . . . 4 Programmer 9 | . . . . . . 2 . . . 1 6 Best Kill Streak 10 | . 4 2 . 3 4 3 . . . 8 10 Combat Bots Only 9 | . 3 2 . 3 4 3 . . . 8 9 Max Kills in Single Turn 4 | . 1 1 . 1 1 1 . . . 1 4 Gunslinging . | . . . . . . . . . . . . Exploded 4 | . . . . . . . . . . . 4 Melee 1 | . . . . 1 1 1 . . . . 1 Uniques/NPCs Destroyed . | . . . . . . . . . . . . Combat | -11 -10 -10 -10 -9 -8 -7 -6 -6 -6 -5 -4 -------- Run | Yrd Mat Min Exi Min Mat Fac Fac Low Low Fac Fac Hostile Shots Fired 764 | . 59 14 . 40 32 103 9 28 . 79 400 Missed 297 | . 19 5 . 11 8 61 7 22 . 36 128 Damage Taken 7681 | . 345 69 . 227 362 411 15 54 . 703 5495 Core 1669 | . 133 6 . 52 75 68 . 25 . 148 1162 Absorbed by Shields 77 | . . . . . . . . . . 77 . Regen/Repaired (Parts) 32 | . . . . . . . . . . 32 . Core Remaining (%) 80 | 100 . . . 23 86 90 . . 97 85 . Volleys Fired 143 | . 39 8 . 1 7 20 . . . 10 58 Largest 3 | . 2 2 . 1 1 2 . . . 1 3 Hottest 124 | . 70 70 . 35 35 96 . . . 48 124 Shots Fired 351 | . 78 16 . 1 20 50 . 3 . 47 136 Gun 210 | . 62 . . . 13 42 . 3 . 37 53 Cannon 132 | . 16 16 . 1 7 7 . . . 10 75 Launcher 8 | . . . . . . . . . . . 8 Special 1 | . . . . . . 1 . . . . . Kinetic 239 | . 78 16 . 1 7 38 . . . 10 89 Thermal 93 | . . . . . 13 11 . 3 . 37 29 Explosive 8 | . . . . . . . . . . . 8 Electromagnetic 10 | . . . . . . . . . . . 10 Robot Hit Streak 19 | . 5 3 . . 8 19 . 2 . 8 17 Robot Miss Streak 5 | . 3 5 . 1 2 3 . 1 . 2 3 Penetration Max 1 | . . . . . . 1 . . . . . Secondary Targets 3 | . 3 . . . . . . . . . . Max Gunslinging Chain 1 | . 1 . . . . . . . . . . Autonomous 93 | . . . . . 13 11 . 3 . 37 29 Shots Hit Robots 237 | . 36 6 . 4 16 40 . 2 . 37 96 Core Hits 113 | . 15 3 . 3 5 14 . . . 14 59 Critical Kills 1 | . . . . . . . . . . . 1 Critical Parts Destroyed 1 | . . . . . . . . . . . 1 Critical Strikes 13 | . 1 . . . . 1 . . . . 11 Destroy 3 | . . . . . . 1 . . . . 2 Blast 6 | . 1 . . . . . . . . . 5 Corrupt 3 | . . . . . . . . . . . 3 Sever 1 | . . . . . . . . . . . 1 Melee Attacks 36 | . . . . 8 9 4 . . . . 15 Impact . | . . . . . . . . . . . . Slashing 36 | . . . . 8 9 4 . . . . 15 Piercing . | . . . . . . . . . . . . Sneak Attacks 2 | . . . . 1 . . . . . . 1 Combat Hostiles . | . . . . . . . . . . . . Follow-up Attacks . | . . . . . . . . . . . . Damage Inflicted 7681 | . 430 106 . 188 421 919 . 60 . 1150 4407 Guns 3352 | . 253 . . . 269 754 . 60 . 1022 994 Cannons 1857 | . 177 106 . . 81 96 . . . 128 1269 Explosions 1875 | . . . . . . . . . . . 1875 Melee 596 | . . . . 188 71 69 . . . . 268 Ramming 1 | . . . . . . . . . . . 1 Kinetic 2846 | . 430 106 . . 81 638 . . . 128 1463 Thermal 2478 | . . . . . 269 212 . 60 . 1022 915 Explosive 1705 | . . . . . . . . . . . 1705 Electromagnetic 55 | . . . . . . . . . . . 55 Impact . | . . . . . . . . . . . . Slashing 596 | . . . . 188 71 69 . . . . 268 Piercing . | . . . . . . . . . . . . Highest Corruption 13 | . . . . . . 1 2 2 . 4 13 Average Corruption 2 | . . . . . . 1 2 1 . 1 4 Corruption Purged 8 | . . . . . . . . 2 . . 6 Corruption Blocked . | . . . . . . . . . . . . Effects 32 | . . . . . . 2 3 2 . 5 20 Message Errors 9 | . . . . . . 1 1 1 . . 6 Matter Fused 11 | . . . . . . . 1 1 . 3 6 Heat Flow Errors 2 | . . . . . . . . . . . 2 Energy Discharges 2 | . . . . . . . . . . . 2 Data Loss (minor) 3 | . . . . . . . . . . 1 2 Data Loss (major) 1 | . . . . . . . 1 . . . . Misfires 1 | . . . . . . 1 . . . . . Alerts 2 | . . . . . . . . . . 1 1 Weapon Failures 1 | . . . . . . . . . . . 1 Overload Shots . | . . . . . . . . . . . . Overflow Damage 160 | . . . . 37 . . . . . . 123 Projectiles 2 | . . . . . . . . . . . 2 Explosions 121 | . . . . . . . . . . . 121 Melee 37 | . . . . 37 . . . . . . . Knockbacks 24 | . 3 3 . . . 1 . . . 1 16 Impact . | . . . . . . . . . . . . Kinetic 24 | . 3 3 . . . 1 . . . 1 16 Secondary . | . . . . . . . . . . . . Self-Inflicted Damage 46 | . . . . . . . . . . . 46 Shots 1 | . . . . . . . . . . . 1 Rammed 1 | . . . . . . . . . . . 1 Targets Rammed 1 | . . . . . . . . . . . 1 Kicked . | . . . . . . . . . . . . Crushed . | . . . . . . . . . . . . Highest Temperature 350 | . 18 27 . . 5 64 332 212 104 350 265 Average Temperature 95 | . 8 13 . . 5 7 144 89 54 132 99 Received Heat Transfer 837 | . 60 . . . 189 114 6 . . 117 351 Effects 7 | . . . . . . . 2 . . 5 . Energy Bleed 2 | . . . . . . . 1 . . 1 . Interference 5 | . . . . . . . 1 . . 4 . Siege Activations . | . . . . . . . . . . . . Robots Corrupted . | . . . . . . . . . . . . Combat Hostiles . | . . . . . . . . . . . . Parts Fried . | . . . . . . . . . . . . Impact Corruptions . | . . . . . . . . . . . . Robots Melted 1 | . . . . . . . . . . . 1 Combat Hostiles 1 | . . . . . . . . . . . 1 Parts Melted 7 | . . . . . . 1 . . . 4 2 Heat Transferred 3099 | . . . . . 333 259 . 74 . 1258 1175 Parts Sabotaged . | . . . . . . . . . . . . Parts Stolen . | . . . . . . . . . . . . Parts Stripped . | . . . . . . . . . . . . Power Chain Reactions . | . . . . . . . . . . . . Alert | -11 -10 -10 -10 -9 -8 -7 -6 -6 -6 -5 -4 ------- Run | Yrd Mat Min Exi Min Mat Fac Fac Low Low Fac Fac Peak Influence 547 | . 165 135 . 75 94 144 338 . . 421 547 Initial 115 | . . 35 . . . 42 63 . . 101 115 Average 175 | . 110 109 . 38 38 75 102 . . 270 311 Maximum Alert Level 2 | . . . . . . . 1 . . 2 2 Low Security (%) 62 | 100 100 100 . 100 100 100 86 . . 7 24 Level 1 26 | . . . . . . . 13 . . 85 43 Level 2 10 | . . . . . . . . . . 7 31 Level 3 . | . . . . . . . . . . . . Level 4 . | . . . . . . . . . . . . Level 5 . | . . . . . . . . . . . . High Security . | . . . . . . . . . . . . Max Security . | . . . . . . . . . . . . Squads Dispatched 21 | . 1 . . . 1 6 2 . . 5 6 Investigation 7 | . . . . . . 2 2 . . 3 . Extermination 6 | . . . . . . 1 . . . 1 4 Reinforcement 7 | . 1 . . . 1 3 . . . 1 1 Assault 1 | . . . . . . . . . . . 1 Garrison . | . . . . . . . . . . . . Intercept . | . . . . . . . . . . . . Searches Triggered . | . . . . . . . . . . . . Construction Impeded 2 | . . . . . . 1 . . . 1 . Haulers Reinforced . | . . . . . . . . . . . . Active Scanning Responses . | . . . . . . . . . . . . Cargo Convoy Interrupts . | . . . . . . . . . . . . Stealth | -11 -10 -10 -10 -9 -8 -7 -6 -6 -6 -5 -4 --------- Run | Yrd Mat Min Exi Min Mat Fac Fac Low Low Fac Fac Distress Signals 6 | . 1 . . . . 2 . . . 2 1 Communications Jammed . | . . . . . . . . . . . . Distress Signals . | . . . . . . . . . . . . Times Spotted 126 | . 17 4 . 3 7 17 1 9 1 20 47 Peak Tracking Total 9 | . 3 3 . 3 4 4 1 7 . 7 9 Tactical Retreats 10 | . . 1 . . . 2 1 . . 1 5 Traps | -11 -10 -10 -10 -9 -8 -7 -6 -6 -6 -5 -4 ------- Run | Yrd Mat Min Exi Min Mat Fac Fac Low Low Fac Fac Traps Triggered 9 | . . . . . . 2 2 . . 3 2 Indirectly . | . . . . . . . . . . . . Trap Hack Attempts 1 | . . . . . . . . . . 1 . Triggered . | . . . . . . . . . . . . Disarmed . | . . . . . . . . . . . . Reprogrammed . | . . . . . . . . . . . . Reused . | . . . . . . . . . . . . Traps Extracted . | . . . . . . . . . . . . Installed . | . . . . . . . . . . . . Triggered . | . . . . . . . . . . . . Machines | -11 -10 -10 -10 -9 -8 -7 -6 -6 -6 -5 -4 ---------- Run | Yrd Mat Min Exi Min Mat Fac Fac Low Low Fac Fac Machines Disabled 11 | . . . . . . 1 . . . . 10 Max in Single Turn 9 | . . . . . . 1 . . . . 9 Garrison Access 1 | . . . . . . . 1 . . . . Machines Repaired . | . . . . . . . . . . . . Machines Dismantled . | . . . . . . . . . . . . Machines Sabotaged . | . . . . . . . . . . . . Overloaded Fab Kills . | . . . . . . . . . . . . Hacking | -11 -10 -10 -10 -9 -8 -7 -6 -6 -6 -5 -4 --------- Run | Yrd Mat Min Exi Min Mat Fac Fac Low Low Fac Fac Machines Accessed 18 | . 3 . . . 1 3 6 . . 5 . Terminals 6 | . 2 . . . . . 3 . . 1 . Fabricators 2 | . . . . . . 1 . . . 1 . Repair Stations 3 | . . . . . . 1 . . . 2 . Recycling Units 2 | . 1 . . . . . 1 . . . . Scanalyzers 3 | . . . . . 1 . 1 . . 1 . Garrison Access 2 | . . . . . . 1 1 . . . . Total Hacks 36 | . 6 . . . 2 5 7 . . 16 . Successful 21 | . 5 . . . 1 . 2 . . 13 . Failed 15 | . 1 . . . 1 5 5 . . 3 . Catastrophic 5 | . . . . . . 1 3 . . 1 . Database Lockouts . | . . . . . . . . . . . . Manual 13 | . 3 . 1 . . . 6 . . 3 . Terminals 14 | . 4 . . . . . 4 . . 6 . Fabricators 4 | . . . . . . 2 . . . 2 . Repair Stations 5 | . . . . . . 1 . . . 4 . Recycling Units 3 | . 2 . . . . . 1 . . . . Scanalyzers 7 | . . . . . 2 . 1 . . 4 . Garrison Access 3 | . . . . . . 2 1 . . . . Terminal Hacks 8 | . 3 . . . . . . . . 5 . Record 1 | . . . . . . . . . . 1 . Locate Traps 1 | . 1 . . . . . . . . . . Dispatch Records 1 | . . . . . . . . . . 1 . Maintenance Status 1 | . . . . . . . . . . 1 . Hauler Manifests 1 | . . . . . . . . . . 1 . Zone Layout 3 | . 2 . . . . . . . . 1 . Fabricator Hacks . | . . . . . . . . . . . . Repair Station Hacks 4 | . . . . . . . . . . 4 . Scan Component 2 | . . . . . . . . . . 2 . Repair 2 | . . . . . . . . . . 2 . Recycling Unit Hacks 1 | . 1 . . . . . . . . . . Report Inventory 1 | . 1 . . . . . . . . . . Scanalyzer 4 | . . . . . 1 . . . . 3 . Insert Component 3 | . . . . . 1 . . . . 2 . Analyze 1 | . . . . . . . . . . 1 . Garrison Access Hacks . | . . . . . . . . . . . . Unauthorized Hacks 4 | . 1 . . . . . 2 . . 1 . Terminals . | . . . . . . . . . . . . Fabricators 1 | . . . . . . . . . . 1 . Download 1 | . . . . . . . . . . 1 . Repair Stations . | . . . . . . . . . . . . Recycling Units 2 | . 1 . . . . . 1 . . . . Reject 2 | . 1 . . . . . 1 . . . . Scanalyzers . | . . . . . . . . . . . . Garrison Access 1 | . . . . . . . 1 . . . . Jam 1 | . . . . . . . 1 . . . . Data Cores Recovered . | . . . . . . . . . . . . Used . | . . . . . . . . . . . . Hacking Detections 14 | . 2 . . . 1 3 4 . . 4 . Full Trace Events 4 | . . . . . . 1 1 . . 2 . Feedback Events 1 | . . . . . . . . . . 1 . Corruption 1 | . . . . . . . . . . 1 . Feedback Blocked . | . . . . . . . . . . . . Robot Schematics Acquired 1 | . . . . . . . . . . 1 . Robots Built . | . . . . . . . . . . . . Authchips . | . . . . . . . . . . . . Time . | . . . . . . . . . . . . Total Robot Build Rating . | . . . . . . . . . . . . Part Schematics Acquired 1 | . . . . . . . . . . 1 . Parts Built . | . . . . . . . . . . . . Authchips . | . . . . . . . . . . . . Time . | . . . . . . . . . . . . Total Part Build Rating . | . . . . . . . . . . . . Parts Repaired 2 | . . . . . . . . . . 2 . Time 87 | . . . . . . . . . . 87 . Parts Recycled . | . . . . . . . . . . . . Recycled Matter . | . . . . . . . . . . . . Retrieved Matter . | . . . . . . . . . . . . Retrieved Components . | . . . . . . . . . . . . Parts Scanalyzed 2 | . . . . . . . . . . 2 . Part Schematics Acquired 1 | . . . . . . . . . . 1 . Parts Damaged 1 | . . . . . . . . . . 1 . Bothacking | -11 -10 -10 -10 -9 -8 -7 -6 -6 -6 -5 -4 ------------ Run | Yrd Mat Min Exi Min Mat Fac Fac Low Low Fac Fac Used RIF Installer . | . . . . . . . . . . . . Robots Hacked 1 | . . . . . . 1 . . . . . Non-combat . | . . . . . . . . . . . . Combat 1 | . . . . . . 1 . . . . . Robot Hacks Applied 1 | . . . . . . 1 . . . . . parse_system 1 | . . . . . . 1 . . . . . Relay Couplers Released 3 | . . . . . . 3 . . . . . Programmers 3 | . . . . . . 3 . . . . . Fabnet Peak Effective % . | . . . . . . . . . . . . Robots Rewired . | . . . . . . . . . . . . Allies Hacked . | . . . . . . . . . . . . Hacks Repelled . | . . . . . . . . . . . . Allies | -11 -10 -10 -10 -9 -8 -7 -6 -6 -6 -5 -4 -------- Run | Yrd Mat Min Exi Min Mat Fac Fac Low Low Fac Fac Total Allies . | . . . . . . . . . . . . Largest Group . | . . . . . . . . . . . . Highest-Rated Group . | . . . . . . . . . . . . Highest-Rated Ally . | . . . . . . . . . . . . Total Orders . | . . . . . . . . . . . . Ally Attacks . | . . . . . . . . . . . . Total Damage . | . . . . . . . . . . . . Kills . | . . . . . . . . . . . . Allies Corrupted . | . . . . . . . . . . . . Allies Melted . | . . . . . . . . . . . . Intel | -11 -10 -10 -10 -9 -8 -7 -6 -6 -6 -5 -4 ------- Run | Yrd Mat Min Exi Min Mat Fac Fac Low Low Fac Fac Robot Analysis Total . | . . . . . . . . . . . . Derelict Logs Recovered 2 | . . . . 2 . . . . . . . Drone Launches 3 | . . . . . . . . . . . 3 Drone Recoveries 1 | . . . . . . . . . . . 1 Exploration | -11 -10 -10 -10 -9 -8 -7 -6 -6 -6 -5 -4 ------------- Run | Yrd Mat Min Exi Min Mat Fac Fac Low Low Fac Fac Turns Passed 6403 | 47 601 260 423 516 488 883 398 158 24 782 1823 Spaces Moved 6256 | 43 374 197 348 393 254 1345 914 320 105 1044 919 Core 77 | 22 . . . . 16 27 . . . . 12 Treads 349 | . . . . . . . . . . . 349 Legs 1758 | 21 374 197 348 393 238 25 . . . . 162 Wheels . | . . . . . . . . . . . . Hover 145 | . . . . . . . . . . . 145 Flight 3927 | . . . . . . 1293 914 320 105 1044 251 Fastest Speed 18 | 50 120 120 120 120 120 23 20 20 23 18 28 Average Speed 69 | 84 127 120 120 120 173 28 20 21 23 24 147 Slowest Speed 600 | 120 190 120 120 120 250 190 20 23 23 108 600 Overloaded Moves 5 | . . . . . . 5 . . . . . Propulsion Burnouts . | . . . . . . . . . . . . Robots Hopped 2 | . . . . . . 1 . . . 1 . Cave-ins Triggered 1 | . . . . . . . . . . . 1 Exploration Rate (%) 39 | 4 38 52 69 92 23 29 21 65 22 39 23 Regions Visited 11 Branch Regions 5 Pre-discovered Areas . | . . . . . . . . . . . . Known Exits Taken 1 | . . . . . 1 . . . . . . Unknown Exits Taken 10 | 1 1 1 1 1 . 1 1 1 1 1 . Scrap Searched 5 | . . . . 4 . . . 1 . . . Spaces Dug 14 | . . . . . 5 2 . . . . 7 Terrain Destroyed 102 | . . . . . 8 6 . . . 5 83 Melee 12 | . . . . . 5 2 . . . . 5 Projectile 25 | . . . . . 3 4 . . . 5 13 AOE 65 | . . . . . . . . . . . 65 Terrain Rammed . | . . . . . . . . . . . . Walls Destroyed . | . . . . . . . . . . . . Machines Disabled . | . . . . . . . . . . . . Actions | -11 -10 -10 -10 -9 -8 -7 -6 -6 -6 -5 -4 --------- Run | Yrd Mat Min Exi Min Mat Fac Fac Low Low Fac Fac Total 7994 | 53 429 204 356 428 286 1792 1125 404 104 1553 1260 Wait 1276 | . 4 . . 18 1 343 203 81 . 449 177 Move 6240 | 42 373 196 347 392 253 1342 913 319 104 1041 918 Hop 2 | . . . . . . 1 . . . 1 . Pick Up 42 | 5 5 . 3 3 2 14 1 . . 3 6 Fast Attach 55 | 2 1 . . . 2 12 2 . . 9 27 Attach 45 | 4 . . 1 2 6 6 1 . . 4 21 Detach 24 | . . . 2 . 3 2 . . . 2 15 Swap 51 | . 6 . . 2 2 17 4 4 . 6 10 Drop 36 | . 1 . 3 2 1 13 1 . . 4 11 Fire 143 | . 39 8 . 1 7 20 . . . 10 58 Melee 36 | . . . . 8 9 4 . . . . 15 Ram 1 | . . . . . . . . . . . 1 Kick . | . . . . . . . . . . . . Crush . | . . . . . . . . . . . . Escape Stasis 42 | . . . . . . 18 . . . 23 1 Rewire . | . . . . . . . . . . . . Trap 1 | . . . . . . . . . . 1 . Miscellaneous . | . . . . . . . . . . . . Route ------- -11/Scrapyard -10/Materials (discovered 2 exits: [*Mat] / [*Min]) -10/Mines (discovered 2 exits: [*Mat] / *Exi) -10/Exiles -9/Mines -8/Materials (discovered 2 exits: *Fac x2) -7/Factory -6/Factory -6/Lower Caves -6/Lower Caves -5/Factory (discovered 4 exits: [*Fac x3] / [*Upp]) -4/Factory History --------- Turn | Location | Event 9 | -11/Scrapyard | Discovered new exit (range 15) 48 | -11/Scrapyard | Entered Materials 270 | -10/Materials | Discovered new exit (range 16) 312 | -10/Materials | Build established: Mutant 481 | -10/Materials | Core integrity fell below 50% 515 | -10/Materials | Discovered new exit (range 13) 649 | -10/Materials | Entered Mines 688 | -10/Mines | Met a Derelict bent on vengeance 733 | -10/Mines | Discovered new exit (range 11) 903 | -10/Mines | Deemed a non-threat by the Exiles lab entrance 904 | -10/Mines | Discovered new exit (range 5) 909 | -10/Mines | Entered Exiles 938 | -10/Exiles | Met 8R-AWN 959 | -10/Exiles | Met EX-HEX 995 | -10/Exiles | Met EX-BIN 1009 | -10/Exiles | Aligned with FarCom system 1010 | -10/Exiles | Given EX-Vault access code 1039 | -10/Exiles | Opened EX-Vault 1049 | -10/Exiles | Found Prototype Energy Gun 1053 | -10/Exiles | Identified AWS/Thermal 1077 | -10/Exiles | Warned to stay clear of 0b10 Research branches 1107 | -10/Exiles | Met EX-DEC 1320 | -10/Exiles | Discovered new exit (range 10) 1332 | -10/Exiles | Left Exiles lab with AWS/Thermal 1332 | -10/Exiles | Entered Mines 1366 | -9/Mines | A weapon hastily lodged in a ceiling crevice suddenly fell to the ground 1409 | -9/Mines | Learned Materials trap positions 1595 | -9/Mines | Found a damaged Exp. Sensor Array with a note attached 1598 | -9/Mines | Found Prototype Device 1652 | -9/Mines | YI-UF0 nonchalantly dropped a Grenade Launcher on the ground 1675 | -9/Mines | Learned 2 Materials zone layouts 1685 | -9/Mines | Found a hidden stash of uninstalled traps 1830 | -9/Mines | Discovered new exit (range 12) 1848 | -9/Mines | Entered Materials 1848 | -8/Materials | Evolved 4 slots: Propulsion x2, Utility x2 1849 | -8/Materials | Identified exit to Factory 1849 | -8/Materials | Identified Exp. Sensor Array 1850 | -8/Materials | Loaded intel: 17 trap records 1978 | -8/Materials | Lost 3 parts (1n2u) 2283 | -8/Materials | Lost 3 parts (1p1n1w) 2315 | -8/Materials | Discovered exit to Factory (range 12) 2336 | -8/Materials | Entered Factory 2336 | -7/Factory | Evolved 2 slots: Propulsion x1, Weapon x1 2719 | -7/Factory | Build established: Sprinter 3218 | -7/Factory | Discovered new exit (range 4) 3219 | -7/Factory | Entered another Factory area 3219 | -6/Factory | Evolved 2 slots: Power x1, Propulsion x1 3600 | -6/Factory | Discovered new exit (range 16) 3617 | -6/Factory | Entered Lower Caves 3705 | -6/Lower Caves | Attracted the attention of an 0b10 checkpoint 3722 | -6/Lower Caves | Spotted B-75 Beast 3772 | -6/Lower Caves | Attracted the attention of an 0b10 outpost 3773 | -6/Lower Caves | Discovered new exit (range 8) 3775 | -6/Lower Caves | Entered another Lower Caves area 3798 | -6/Lower Caves | Discovered new exit (range 6) 3799 | -6/Lower Caves | Entered Factory 3799 | -5/Factory | Evolved 2 slots: Propulsion x1, Utility x1 3911 | -5/Factory | Lost 4 parts (3n1w) 3912 | -5/Factory | Destroyed 8 combat bots 3932 | -5/Factory | Discovered new exit (range 13) 3935 | -5/Factory | Discovered new exit (range 10) 4081 | -5/Factory | Discovered new exit (range 9) 4111 | -5/Factory | Repaired Cesium-ion Thruster 4222 | -5/Factory | Repaired Broken Exp. Sensor Array 4379 | -5/Factory | Build established: Hacker-Sprinter 4532 | -5/Factory | Discovered new exit (range 18) 4581 | -5/Factory | Entered another Factory area 4581 | -4/Factory | Evolved 2 slots: Propulsion x1, Utility x1 4599 | -4/Factory | Lost 3 parts (1p1n1u) 4814 | -4/Factory | Spotted B-86 Titan 5073 | -4/Factory | Lost 6 parts (1p3n2u) 5309 | -4/Factory | Build established: Gunner 5631 | -4/Factory | Destroyed 9 combat bots 5640 | -4/Factory | Lost 3 parts (2n1u) 5980 | -4/Factory | Build established: Scavenger-Gunner 6113 | -4/Factory | First assault squad dispatched 6161 | -4/Factory | Lost 6 parts (3n2u1w) 6229 | -4/Factory | Lost 5 parts (2p2n1u) 6276 | -4/Factory | Crushed by falling debris 6277 | -4/Factory | System corruption reached 10% 6306 | -4/Factory | Core integrity fell below 50% 6396 | -4/Factory | Core integrity fell below 20% 6404 | -4/Factory | Destroyed by P-70 Sage with High-powered Shock Rifle Last Messages --------------- 06380_ Sneak attack on R-10 Processor. 06380_ R-10 Processor destroyed. 06384_ Acquired Lgt. Antimatter Reactor. 06387_ Acquired Flexi-carbon Leg. 06387_ R-10 Processor collects Adv. Heat Sink. 06391_ System corrupted: Component data lost. 06391_ Flexi-carbon Leg severed. 06391_ R-10 Processor collects Imp. Ion Engine. 06392_ Lgt. Antimatter Reactor destroyed. 06394_ R-10 Processor collects Field Recycling Unit. 06398_ Imp. Target Analyzer destroyed. 06398_ R-10 Processor collects Com. Wheel. 06400_ Axe destroyed. 06400_ R-10 Processor collects Flexi-carbon Leg. 06402_ R-10 Processor collects Field Laser. 06403_ Field Propulsion Drive destroyed. 06403_ Nuclear Pulse Thruster destroyed. 06403_ M-36 Artificer repairs Power Sword. [Achievement: Just Browsing] Map ----- +----------------------------------------------------+ | ?????????????????????????????????????????????????? | | ?????????????????????????????????????????????????? | | ?????????????????????????????????????????????????? | | ?????????????????????????????????????????????????? | | ?????????????????????????????????????????????????? | | ?????????????????????????????????????????????????? | | ?????????????????????????????????????????????????? | | ???????????????##????????????????????????????????? | | ????????????? ???###?????????????????????????? | | ????????????? ???# ?????????????????????????? | | ?????????????? ???+ ?????????????????????????? | | ?????????????? ???# ?????????????????????????? | | ??????????????? ??# """??""""????????????????? | | ???????????????# ??# """" """"????????????????? | | ???????????????# ??# """" """" ???????????????? | | ???????????????# ?# """" """" ???????????????? | | ???????????????# ?# """" """" #??????????????? | | ???????????????# ?# """" """"????????????????? | | ???????????????# # """" ""??????????? ??????? | | ???????????????#^ ^ # p???????????# ??????? | | ???????????????# ? ??????????????# ?????? | | ???????????????# ###p###########?????# ?????? | | ???????????????# #?????# ?????? | | ???????????????# #????## ?????? | | ???????????????# #????# ?????? | | ???????????????# """ R@ g ###### #??? | | ???????????????# """ lm g T +??? | | ???????????????# """ R ####+#+######## #??? | | ???????????????# = g# #?? ??#??? | | ???????????????# + #??# ###### | | ???????????????+ ###### """ """ !#??# | | ???????????????# ?????# """ """ #??? | | ???????????????# ?????# """ """ #???# | | ???????????????# ??????# "" "" #???# | | ???????######### ??????# "" "" #???# | | ???????# ! # ?????# ! #???# | | ???????# """ # #????# ##### | | ???????# """ [# #????# + | | ???????# """ # #????# ##### | | ???????# # #????# #???# | | ???????# *! # #???###############???# | | ???????# ! # #???# #???# | | ######## * # #???# """ """ """ #???# ##### | | ## # #???# """ """ """ #???# #?### | | ## """ # #???# """ """ """ #???# #?# | | ## """ # #???# #???# #?# | | " """ ## """ # #???# """ """ """ #???# #?# | | " """ ## !# #???# """ """ """ ##### ### | | " """ ## """ # #???# """ """ """ + + | | ## """ # #???# # #######! | +----------------------------------------------------+ Best States ------------- Heat Dissipation 43 Energy Generation 35 Energy Capacity 510 Matter Stores 300 Matter Capacity 300 Sight Range 22 Robot Scan Range 20 Terrain Scan Density 110 Additional Mass Support 9 Armor Coverage 80 Evasion (%) 73 Targeting Accuracy 8 Target Analysis 9 Recoil Reduction 7 Matter Filtering 30 Kinecelleration 40 Offensive Hacking 22 Item Schematics ----------------- Reaction Control System | -5/Factory | Scanalyzed Robot Schematics ------------------ T-07 Excavator | -5/Factory | Downloaded Fabricated ------------ Nothing Alien Tech Used ----------------- None Achievements -------------- Just Browsing Leap Before You Look Part-time Excavator Challenges ------------ None Game ------ Seed MissilePoweredShotgun Manual? 0 Play Time 01:28:45 Cumulative 14.3 hours Start 2024.04.05 @ 15:51:21 End 2024.04.06 @ 11:34:01 Sessions 3 Manual Loads 0 Difficulty Rogue Special Mode None Game No. 25 Rogue 25 Adventurer 0 Explorer 0 Win Type - Total 0 Types 0/0/0/0/0/0/0/0/0 Lore% 19 Gallery% 25 Achievement% 21 Wizard Run 0 Options --------- Layout 1 ASCII 0 Keyboard 0 Movement Numpad Keybinds 0 Fullscreen 2 Font 24/Terminus Map View 50x35 Zoom Use 0% Tactical HUD 1 Map Filters NONE Filters NONE Steam 1 RUN: b07252ad-dd46-4414-a53e-7502326868e2